Cogmind - Beta 17 @@@ ROGUE MODE // 2026.06.28 @ 20:39:37 Player: 3.14 Result: Destroyed by YM-E6L(R) with Subdweller Laser Performance ------------- Evolutions (0) 0 Regions Visited (2) 400 Robots Destroyed (24) 120 Value Destroyed (503) 503 Prototype IDs (1) 20 Alien Tech Used (0) 0 Bonus (5300) 5300 TOTAL SCORE: 6343 Bonus ------- Prayed to X0-1V1 5000 Major X0-1V1 Interference 300 Cogmind --------- Core Integrity 0/250 Matter 265/300 Energy 100/100 System Corruption 0% Temperature Cool (6) Movement Core (800) Ox15 Location -10/Subcaves Parts ------- > --- POWER (1) -------- (None) > --- PROPULSION (2) --- (None) > --- UTILITY (2) ------ High-capacity Storage Unit X0-1V1's Piety Tracker > --- WEAPON (2) ------- Battle Rifle Subdweller Machine Gun > --- INVENTORY (20) --- Heat Sink Disposable Heat Sink Large Matter Pod (150) Seismic Detector Medium Laser Small Laser Light Assault Rifle Light Assault Rifle Peak State ------------ > --- POWER ------------ Ion Engine > --- PROPULSION ------- Light Treads Light Treads > --- UTILITY ---------- High-capacity Storage Unit X0-1V1's Piety Tracker > --- WEAPON ----------- Subdweller Machine Gun Light Cannon > --- INVENTORY -------- Light Ion Engine Aluminum Leg Aluminum Leg Heat Sink Large Matter Pod Seismic Detector Seismic Detector Medium Laser Small Laser Light Assault Rifle Light Assault Rifle [Rating: 21] Favorites ----------- Power Ion Engine Engine Ion Engine Propulsion Light Treads Treads Light Treads Leg Aluminum Leg Utility High-capacity Storage Unit Device Heat Sink Storage High-capacity Storage Unit Weapon Light Assault Rifle Energy Gun Medium Laser Ballistic Gun Light Assault Rifle Ballistic Cannon Light Cannon Build | -11 -10 -10 ------- Run | Yrd Mat Sub Slots Evolved . | . . . Power . | . . . Propulsion . | . . . Utility . | . . . Weapon . | . . . Parts Attached 25 | 8 5 12 Power 3 | 2 . 1 Engine 3 | 2 . 1 Core . | . . . Reactor . | . . . Propulsion 5 | 2 . 3 Treads 3 | 2 . 1 Leg 2 | . . 2 Wheel . | . . . Hover . | . . . Flight . | . . . Utility 8 | 2 4 2 Device 5 | 1 2 2 Storage 3 | 1 2 . Processor . | . . . Hackware . | . . . Protection . | . . . Artifact . | . . . Weapon 9 | 2 1 6 Energy Gun 2 | . . 2 Energy Cannon . | . . . Ballistic Gun 6 | 2 . 4 Ballistic Cannon 1 | . 1 . Launcher . | . . . Special Weapon . | . . . Impact Weapon . | . . . Slashing Weapon . | . . . Piercing Weapon . | . . . Special Melee Weapon . | . . . Unidentified Prototypes 1 | . 1 . Parts Lost 10 | . . 10 Power 2 | . . 2 Propulsion 5 | . . 5 Utility 1 | . . 1 Weapon 2 | . . 2 Highest Loss Streak 3 | . . 3 To Critical Strikes 1 | . . 1 Average Backups 8 | 3 8 9 Power . | . 1 . Propulsion 1 | 1 2 1 Utility 2 | . 2 4 Weapon 2 | . 2 3 Tool/Special . | . . . Unused Backups 3 | . 1 2 Power . | . . . Propulsion . | . . . Utility 3 | . 1 2 Weapon . | . . . Tool/Special . | . . . Average Slot Usage (%) 99 | . 99 98 Engine 13 | . 14 13 Treads 24 | . 28 17 Leg 2 | . . 9 Device 13 | . 14 13 Storage 14 | . 14 14 Ballistic Gun 18 | . 20 14 Ballistic Cannon 7 | . 6 10 Peak Build Rating 21 | 7 20 21 Average Rating 9 | 6 7 14 On Entrance 9 | . 7 20 Avg Prop Armor Cover (%) . | . . . Naked Turns . | . . . Heaviest Build 53 | 13 50 53 Greatest Support 40 | 40 40 40 Greatest Overweight (x) 5 | . 1 5 Average Overweight (x) . | . . 1 Largest Inventory Capacity 20 | 8 20 20 Average Capacity 18 | 7 19 20 Most Carried 12 | 5 12 12 Average Carried 8 | 3 8 9 Final Capacity 20 | 8 20 20 Final Carried 12 | 5 12 8 Class Distribution -------------------- 100% | Mutant Dominant Class ---------------- Mutant | -10/Materials Mutant | -10/Subcaves Resources | -11 -10 -10 ----------- Run | Yrd Mat Sub Matter Collected 810 | 275 298 237 Remotely . | . . . Salvage Created 634 | 98 392 144 Parts 51 | 9 27 15 Haulers Intercepted 1 | . 1 . Recyclers Shooed 2 | . 2 . Parts Field Recycled . | . . . Retrieved Matter . | . . . Parts Self-Destructed 8 | . . 8 Prevented . | . . . Parts Restored . | . . . Kills | -11 -10 -10 ------- Run | Yrd Mat Sub Combat Hostiles Destroyed 18 | . 10 8 Guns 12 | . 8 4 Cannons 6 | . 2 4 Classes Destroyed 8 | 2 5 1 Worker 1 | . 1 . Tunneler 2 | 2 . . Hauler 1 | . 1 . Recycler 1 | 1 . . Operator 1 | . 1 . Swarmer 8 | . 3 5 Grunt 7 | . 7 . Subdweller 3 | . . 3 Best Kill Streak 4 | 1 3 4 Combat Bots Only 4 | . 3 4 Max Kills in Single Turn 2 | 1 1 2 Gunslinging 1 | . . 1 Exploded . | . . . Melee . | . . . Uniques/NPCs Destroyed . | . . . Combat | -11 -10 -10 -------- Run | Yrd Mat Sub Hostile Shots Fired 201 | . 38 163 Missed 51 | . 12 39 Hits 150 | . 26 124 Projectile 150 | . 26 124 AOE 2 | . . 2 Critical Strikes 2 | . 1 1 Damage Taken 1744 | . 338 1406 Core 371 | . 36 335 Absorbed by Shields . | . . . Regen/Repaired (Parts) 26 | . 26 . Core Remaining (%) 100 | 100 . . Volleys Fired 82 | 9 34 39 Largest 2 | 2 2 2 Hottest 90 | 40 50 90 Shots Fired 163 | 18 68 77 Gun 127 | 18 58 51 Cannon 36 | . 10 26 Launcher . | . . . Special . | . . . Kinetic 155 | 18 68 69 Thermal 8 | . . 8 Explosive . | . . . Electromagnetic . | . . . Robot Hit Streak 24 | 7 15 24 Robot Miss Streak 8 | 2 3 8 Penetration Max . | . . . Secondary Targets 1 | . . 1 Max Gunslinging Chain 1 | . . 1 Shots Hit Robots 104 | 12 45 47 Core Hits 46 | 6 28 12 Critical Kills 2 | . 2 . Critical Parts Destroyed . | . . . Critical Strikes 2 | . 2 . Destroy 2 | . 2 . Melee Attacks . | . . . Impact . | . . . Slashing . | . . . Piercing . | . . . Sneak Attacks . | . . . Combat Hostiles . | . . . Follow-up Attacks . | . . . Damage Inflicted 1307 | 99 512 696 Guns 781 | 97 314 370 Cannons 478 | . 152 326 Explosions . | . . . Melee . | . . . Ramming 48 | 2 46 . Kinetic 1222 | 97 466 659 Thermal 37 | . . 37 Explosive . | . . . Electromagnetic . | . . . Impact . | . . . Slashing . | . . . Piercing . | . . . Highest Corruption . | . . . Average Corruption . | . . . Corruption Purged . | . . . Corruption Blocked . | . . . Overload Shots . | . . . Overflow Damage 11 | . 11 . Projectiles 11 | . 11 . Explosions . | . . . Melee . | . . . Knockbacks 1 | . . 1 Impact . | . . . Kinetic 1 | . . 1 Secondary . | . . . Self-Inflicted Damage . | . . . Shots . | . . . Rammed 11 | 2 9 . Targets Rammed 12 | 2 10 . Kicked . | . . . Crushed 1 | . 1 . Highest Temperature 248 | . 17 248 Average Temperature 65 | . 4 136 Received Heat Transfer 423 | . 171 252 Siege Activations . | . . . Martial Activations . | . . . Shielding Activations . | . . . Robots Disrupted . | . . . Combat Hostiles . | . . . Robots Corrupted . | . . . Combat Hostiles . | . . . Parts Fried . | . . . Impact Corruptions . | . . . Robots Melted . | . . . Combat Hostiles . | . . . Parts Melted 1 | . 1 . Heat Transferred 99 | . . 99 Parts Sabotaged . | . . . Parts Stolen . | . . . Parts Stripped . | . . . Power Chain Reactions . | . . . Alert | -11 -10 -10 ------- Run | Yrd Mat Sub Maximum Alert Level . | . . . Low Security (%) 100 | 100 100 . Level 1 . | . . . Level 2 . | . . . Level 3 . | . . . Level 4 . | . . . Level 5 . | . . . High Security . | . . . Max Security . | . . . Peak Influence 144 | 5 144 . Initial . | . . . Average 28 | 1 32 . Influence Increases 478 | 15 303 160 Destroy 0b10 Robot/C 300 | . 200 100 Destroy 0b10 Robot/NC 30 | 15 15 . Destroy Leader 52 | . 52 . Successful Hack 6 | . 6 . Lose Combat Pursuer 90 | . 30 60 Influence Decreases 478 | 15 303 160 Time Decay 390 | 15 285 90 Lost Part 70 | . . 70 Purge Threat 18 | . 18 . Squads Dispatched 2 | . 2 . Investigation . | . . . Extermination . | . . . Reinforcement 2 | . 2 . Assault . | . . . Garrison . | . . . Intercept . | . . . Searches Triggered . | . . . Construction Impeded . | . . . Haulers Reinforced . | . . . Active Scanning Responses . | . . . Cargo Convoy Interrupts . | . . . Stealth | -11 -10 -10 --------- Run | Yrd Mat Sub Distress Signals 1 | . 1 . Communications Jammed . | . . . Distress Signals . | . . . Times Spotted 43 | . 24 19 Peak Tracking Total 6 | . 4 6 Tactical Retreats 4 | . 1 3 Traps | -11 -10 -10 ------- Run | Yrd Mat Sub Traps Triggered 1 | . 1 . Indirectly . | . . . Trap Hack Attempts . | . . . Triggered . | . . . Disarmed . | . . . Reprogrammed . | . . . Reused . | . . . Traps Extracted . | . . . Installed . | . . . Triggered . | . . . Machines | -11 -10 -10 ---------- Run | Yrd Mat Sub Machines Disabled . | . . . Max in Single Turn . | . . . Machines Repaired . | . . . Machines Dismantled . | . . . Machines Sabotaged . | . . . Overloaded Fab Kills . | . . . Hacking | -11 -10 -10 --------- Run | Yrd Mat Sub Machines Accessed 5 | . 5 . Terminals 4 | . 4 . Fabricators . | . . . Repair Stations 1 | . 1 . Recycling Units . | . . . Scanalyzers . | . . . Garrison Access . | . . . Total Hacks 12 | . 12 . Successful 5 | . 5 . Failed 7 | . 7 . Catastrophic 1 | . 1 . Database Lockouts . | . . . Manual 10 | . 10 . Terminals 9 | . 9 . Fabricators . | . . . Repair Stations 3 | . 3 . Recycling Units . | . . . Scanalyzers . | . . . Garrison Access . | . . . Terminal Hacks 3 | . 3 . Part Schematic 1 | . 1 . Robot Analysis 1 | . 1 . Unreport Threat 1 | . 1 . Fabricator Hacks . | . . . Repair Station Hacks 2 | . 2 . Scan Component 1 | . 1 . Repair 1 | . 1 . Recycling Unit Hacks . | . . . Scanalyzer . | . . . Garrison Access Hacks . | . . . Unauthorized Hacks . | . . . Terminals . | . . . Fabricators . | . . . Repair Stations . | . . . Recycling Units . | . . . Scanalyzers . | . . . Garrison Access . | . . . Data Cores Recovered 1 | . 1 . Used 1 | . 1 . Hacking Detections 5 | . 5 . Full Trace Events 1 | . 1 . Feedback Events . | . . . Feedback Blocked . | . . . Robot Schematics Acquired . | . . . Robots Built . | . . . Authchips . | . . . Time . | . . . Total Robot Build Rating . | . . . Part Schematics Acquired 1 | . 1 . Parts Built . | . . . Authchips . | . . . Time . | . . . Total Part Build Rating . | . . . Part Studies Acquired . | . . . Parts Repaired 1 | . 1 . Time 26 | . 26 . Parts Recycled . | . . . Recycled Matter . | . . . Retrieved Matter . | . . . Retrieved Components . | . . . Parts Scanalyzed . | . . . Part Schematics Acquired . | . . . Parts Damaged . | . . . Bothacking | -11 -10 -10 ------------ Run | Yrd Mat Sub Used RIF Installer . | . . . Robots Hacked . | . . . Non-combat . | . . . Combat . | . . . Robot Hacks Applied . | . . . Relay Couplers Released . | . . . Fabnet Peak Effective % . | . . . Robots Rewired . | . . . Allies Hacked . | . . . Hacks Repelled . | . . . Allies | -11 -10 -10 -------- Run | Yrd Mat Sub Total Allies . | . . . Largest Group . | . . . Highest-Rated Group . | . . . Highest-Rated Ally . | . . . Total Orders . | . . . Ally Attacks . | . . . Total Damage . | . . . Kills . | . . . Allies Corrupted . | . . . Allies Melted . | . . . X0-1V1 Amusement Gains 56 | . 6 50 Good Acts 3 | . . 3 Bad Acts 4 | . . 4 Intel | -11 -10 -10 ------- Run | Yrd Mat Sub Active Infowar (turns) 1075 | 104 588 383 Seismic 1075 | 104 588 383 Robot Analysis Total 1 | . 1 . Derelict Logs Recovered 1 | . . 1 Drone Launches . | . . . Drone Recoveries . | . . . Exploration | -11 -10 -10 ------------- Run | Yrd Mat Sub Turns Passed 2961 | 233 1933 795 Spaces Moved 1091 | 124 726 241 Core 6 | 6 . . Treads 996 | 118 726 152 Legs 89 | . . 89 Wheels . | . . . Hover . | . . . Flight . | . . . Fastest Speed 50 | 50 160 240 Average Speed 227 | 154 233 248 Slowest Speed 470 | 160 240 470 Overloaded Moves . | . . . Propulsion Burnouts . | . . . Robots Hopped . | . . . Potential Cave-ins . | . . . Cave-ins Triggered . | . . . Exploration Rate (%) 41 | 5 95 24 Regions Visited 2 Branch Regions 1 Pre-discovered Areas 1 | . . 1 Known Exits Taken . | . . . Unknown Exits Taken 2 | 1 1 . Scrap Searched 7 | . . 7 Spaces Dug . | . . . Terrain Destroyed . | . . . Melee . | . . . Projectile . | . . . AOE . | . . . Terrain Rammed . | . . . Walls Destroyed . | . . . Machines Disabled . | . . . Actions | -11 -10 -10 --------- Run | Yrd Mat Sub Total 1401 | 146 892 363 Wait 170 | . 106 64 Move 1089 | 123 725 241 Hop . | . . . Pick Up 15 | 4 8 3 Fast Attach 10 | 7 1 2 Attach 7 | . . 7 Detach 1 | . . 1 Swap 10 | 1 5 4 Drop 5 | . 3 2 Fire 82 | 9 34 39 Melee . | . . . Ram . | . . . Kick . | . . . Crush 12 | 2 10 . Escape Stasis . | . . . Rewire . | . . . Trap . | . . . Miscellaneous . | . . . Route ------- -11/Scrapyard -10/Materials (discovered 5 exits: [*Mat x3] / [*Min] / [*Sub]) -10/Subcaves (discovered 3 exits: *Mat x2 / [*Rec]) History --------- Turn | Location | Event 7 | -11/Scrapyard | Discovered new exit (range 15) 234 | -11/Scrapyard | Entered Materials 311 | -10/Materials | Build established: Mutant 447 | -10/Materials | Discovered new exit (range 4) 591 | -10/Materials | Repaired Lgt. Assault Rifle 812 | -10/Materials | Discovered new exit (range 7) 1006 | -10/Materials | Discovered new exit (range 15) 1403 | -10/Materials | Discovered new exit (range 10) 2150 | -10/Materials | Discovered new exit (range 6) 2162 | -10/Materials | Prayed at D.C.S.S. Altar Unit 2167 | -10/Materials | Entered Subcaves 2192 | -10/Subcaves | Identified exit to Materials 2192 | -10/Subcaves | X0-1V1 revealed exit location to -8/Materials 2227 | -10/Subcaves | Core integrity fell below 50% 2392 | -10/Subcaves | Shifting Twisted Machinery released Mak. Leg 2398 | -10/Subcaves | Discovered exit to Materials (range 12) 2648 | -10/Subcaves | X0-1V1 sent hostile S-10 Pest (x5) 2649 | -10/Subcaves | Core integrity fell below 20% 2680 | -10/Subcaves | X0-1V1 rescued you from certain death 2710 | -10/Subcaves | Learned location of Zion (-7) 2710 | -10/Subcaves | Met a Zionite searching for "candidates" 2751 | -10/Subcaves | Discovered new exit (range 18) 2821 | -10/Subcaves | Lost 3 parts (1p1u1w) 2962 | -10/Subcaves | Destroyed by YM-E6L(R) with Subdweller Laser Last Messages --------------- 02840_ Acquired 44 matter. 02845_ Acquired Battle Rifle. 02847_ X0-1V1: "Use it or lose it, I always say." 02847_ Aluminum Leg fused. 02870_ Searching scrap... 02870_ Found Sub. Power Source. 02870_ Found 53 Matter. 02871_ Acquired 52 matter. 02873_ Searching scrap... 02873_ Found Sub. Machine Gun. 02873_ Found 39 Matter. 02879_ Acquired Sub. Machine Gun. 02940_ ZU-GVI(R) destroyed. 02948_ X0-1V1 makes it rain matter. 02950_ Lgt. Ion Engine destroyed. 02950_ Aluminum Leg destroyed. 02950_ PD-P1Y(R) destroyed. 02957_ Sight range returns to normal. 02959_ Aluminum Leg destroyed. 02962_ X0-1V1 giggles madly! Map ----- +----------------------------------------------------+ | ?????????????????????????????????????????????????? | | ?????????????????????????????????????????????????? | | ?????????????????????????????????????????????????? | | ?????????????????????????????????????????????????? | | ?????????????????????????????????????????????????? | | ?????????????????????????????????????????????????? | | ?????????????????????????????????????????????????? | | ?????????????????????????????????????????????????? | | ?????????????????????????????????????????????????? | | ?????????????????????????????????????????????????? | | ?????????????????????????????????????????????????? | | ?????????# ??????????????????????????????????????? | | ????????## ##???????????????????????????????????? | | ????????# # #??????????????????????????????????? | | ????????? #?????????????????????????????????? | | ??????????# #????????????????????????????????? | | ???????????# %######????????????????#?????????? | | ???????????# #??????????? "" ??????????? | | ???????????# """ ##?????????" "" ???????????? | | ????????????# """""""""##???????" ?????????????? | | ??????????????# """""""####??? " #??????????????? | | ????????????#### "" # ### #???????????????? | | ????????????# #?# % ; ;" "#???????????????? | | ????????????# ### % ; %##??????????????? | | ???????????## % % R ## #????????? | | ???????????# ## @ %] #????????? | | ??????????## #### &[ ### #????????? | | ??????????# ##??# #??????????????????? | | ???#####??# #???# #??????????????????? | | ???#" |##### #??#% ##??????????????????? | | ???### " ### #? % ??????????????????? | | ?????# "## ## % ????????????????? | | ?????#" ###" # ## % ???????????????? | | ?????## #"" ##% % #??????????????? | | ??????# ## %% ## ####??????????????? | | ??????# ## % ####?# ##?????????????????? | | ??????# #" ## ##?????###??????????????????? | | ?????### ## ## ##???????????????????????????? | | ?????# # # ## ##????????????????????????? | | ?????#% ## # "#?????????????????? | | ?????#% ## % ""#?????????????????? | | ????""* ###% % <#????????????????? | | ??# """### % #### ""#?????????????????? | | ??#######?## [#???# ## # "#?????????????????? | | ??????????# ##???# #?##??? "#?????????????????? | | ??????????## ###??##???????????????????????????? | | ???????????## #???????????????????????????????? | | ???????????## ##???????????????????????????????? | | ???????????# ##????????????????????????????????? | | ???????????## ##????????????????????????????????? | +----------------------------------------------------+ Best States ------------- Heat Dissipation 35 Energy Generation 10 Energy Capacity 250 Matter Stores 300 Matter Capacity 300 Sight Range 21 Terrain Scan Density 10 Evasion (%) 40 Recoil Reduction 2 Item Schematics ----------------- Huge Storage Unit | -10/Materials | Hacked Robot Schematics ------------------ None Fabricated ------------ Nothing Repaired ---------- Lgt. Assault Rifle | 67% | -10/Materials Studied --------- None Alien Tech Used ----------------- None Achievements -------------- None Challenges ------------ None Game ------ Seed GreatPietyDriveblaster Manual? 0 Play Time 00:12:40 Cumulative 961.7 hours Start 2026.06.28 @ 20:29:53 End 2026.06.28 @ 20:39:37 Sessions 1 Manual Loads 0 Difficulty Rogue Special Mode None Game No. 1644 Rogue 1644 Adventurer 0 Explorer 0 Win Type - Total 95 Types 56/1/16/16/4/0/0/1/0/1 Lore% 93 Gallery% 80 Achievement% 67 Wizard Run 0 Options --------- Layout 0 ASCII 1 Keyboard 0 Movement Numpad Keybinds 1 Fullscreen 2 Font 18/SmallcapsGlow Map View 76x50 Zoom Use 0% Tactical HUD 1 Map Filters NONE Filters NONE Steam 1 RUN: a86fca7b-a7ad-4d10-9e6f-27528c5f026a